Cogmind - Beta 17.1 @@@ ROGUE MODE // 2026.09.22 @ 18:51:30 Player: Caluan Result: Destroyed by 6C-9F2(R) with Subdweller Laser Performance ------------- Evolutions (0) 0 Regions Visited (2) 400 Robots Destroyed (17) 85 Value Destroyed (427) 427 Prototype IDs (0) 0 Alien Tech Used (0) 0 Bonus (0) 0 TOTAL SCORE: 912 Bonus ------- None Cogmind --------- Core Integrity 0/250 Matter 300/300 Energy 164/200 System Corruption 0% Temperature Cool (6) Movement Rolling (175) Ox5 Location -10/Subcaves Parts ------- > --- POWER (1) -------- Subdweller Power Source > --- PROPULSION (2) --- Compact Wheel > --- UTILITY (2) ------ Huge Storage Unit > --- WEAPON (2) ------- Subdweller Laser Subdweller Laser > --- INVENTORY (25) --- Light Ion Engine Subdweller Power Source Subdweller Power Source Light Treads Compact Wheel Subdweller Monowheel Subdweller Monowheel Subdweller Monowheel Subdweller Monowheel Subdweller Optics Subdweller Optics Subdweller Beam Cannon Subdweller Beam Cannon Subdweller Machine Gun Subdweller Machine Gun Grenade Launcher Grenade Launcher Datajack Peak State ------------ > --- POWER ------------ Subdweller Power Source > --- PROPULSION ------- Compact Wheel Compact Wheel > --- UTILITY ---------- Huge Storage Unit > --- WEAPON ----------- Riot Gun Subdweller Laser > --- INVENTORY -------- Light Ion Engine Subdweller Power Source Subdweller Power Source Light Treads Compact Wheel Subdweller Monowheel Subdweller Monowheel Subdweller Monowheel Subdweller Monowheel Subdweller Optics Subdweller Optics Subdweller Laser Subdweller Beam Cannon Subdweller Machine Gun Subdweller Machine Gun Grenade Launcher Grenade Launcher Datajack [Rating: 13] Favorites ----------- Power Subdweller Power Source Engine Subdweller Power Source Propulsion Compact Wheel Treads Light Treads Wheel Compact Wheel Utility Huge Storage Unit Storage Huge Storage Unit Weapon Subdweller Laser Energy Gun Subdweller Laser Ballistic Gun Light Assault Rifle Build | -11 -10 -10 ------- Run | Yrd Mat Sub Slots Evolved . | . . . Power . | . . . Propulsion . | . . . Utility . | . . . Weapon . | . . . Parts Attached 17 | 6 1 10 Power 4 | 1 . 3 Engine 4 | 1 . 3 Core . | . . . Reactor . | . . . Propulsion 4 | 2 . 2 Treads 2 | 2 . . Leg . | . . . Wheel 2 | . . 2 Hover . | . . . Flight . | . . . Utility 2 | 1 1 . Device . | . . . Storage 2 | 1 1 . Processor . | . . . Hackware . | . . . Protection . | . . . Artifact . | . . . Weapon 7 | 2 . 5 Energy Gun 4 | . . 4 Energy Cannon . | . . . Ballistic Gun 3 | 2 . 1 Ballistic Cannon . | . . . Launcher . | . . . Special Weapon . | . . . Impact Weapon . | . . . Slashing Weapon . | . . . Piercing Weapon . | . . . Special Melee Weapon . | . . . Unidentified Prototypes . | . . . Parts Lost 8 | . . 8 Power 1 | . . 1 Propulsion 3 | . . 3 Utility . | . . . Weapon 4 | . . 4 Highest Loss Streak 4 | . . 4 To Critical Strikes 1 | . . 1 Average Backups 11 | 3 6 14 Power 2 | . 1 2 Propulsion 3 | 1 2 4 Utility 1 | . . 1 Weapon 3 | . 2 4 Tool/Special . | . . . Unused Backups 15 | . . 15 Power 1 | . . 1 Propulsion 6 | . . 6 Utility 2 | . . 2 Weapon 5 | . . 5 Tool/Special 1 | . . 1 Average Slot Usage (%) 83 | . 85 83 Engine 13 | . 14 13 Treads 7 | . 28 1 Wheel 19 | . . 26 Storage 14 | . 14 14 Energy Gun 17 | . . 22 Ballistic Gun 10 | . 28 4 Peak Build Rating 13 | 6 6 13 Average Rating 9 | 4 6 10 On Entrance 4 | . 6 6 Avg Prop Armor Cover (%) . | . . . Naked Turns . | . . . Heaviest Build 93 | 11 86 93 Greatest Support 40 | 40 40 40 Greatest Overweight (x) 5 | 1 2 5 Average Overweight (x) 1 | . . 2 Largest Inventory Capacity 25 | 8 25 25 Average Capacity 21 | 7 10 25 Most Carried 19 | 5 8 19 Average Carried 11 | 3 6 14 Final Capacity 25 | 8 25 25 Final Carried 18 | 4 7 18 Class Distribution -------------------- 100% | Mutant Dominant Class ---------------- Mutant | -10/Materials Mutant | -10/Subcaves Resources | -11 -10 -10 ----------- Run | Yrd Mat Sub Matter Collected 569 | 209 219 141 Remotely . | . . . Salvage Created 576 | . 347 229 Parts 43 | . 23 20 Haulers Intercepted 1 | . 1 . Recyclers Shooed 1 | . 1 . Parts Field Recycled . | . . . Retrieved Matter . | . . . Parts Self-Destructed 12 | . . 12 Prevented . | . . . Parts Restored . | . . . Kills | -11 -10 -10 ------- Run | Yrd Mat Sub Combat Hostiles Destroyed 14 | . 8 6 Guns 13 | . 8 5 Classes Destroyed 5 | . 4 1 Worker 2 | . 2 . Hauler 1 | . 1 . Swarmer 4 | . 3 1 Grunt 5 | . 5 . Subdweller 5 | . . 5 Best Kill Streak 3 | . 3 2 Combat Bots Only 3 | . 3 2 Max Kills in Single Turn 2 | . 2 1 Gunslinging . | . . . Exploded . | . . . Melee . | . . . Uniques/NPCs Destroyed . | . . . Combat | -11 -10 -10 -------- Run | Yrd Mat Sub Hostile Shots Fired 112 | . 59 53 Missed 41 | . 21 20 Hits 71 | . 38 33 Projectile 71 | . 38 33 Critical Strikes 2 | . . 2 Damage Taken 1058 | . 407 651 Core 258 | . 51 207 Absorbed by Shields . | . . . Core Remaining (%) 100 | 100 . . Volleys Fired 110 | . 46 64 Largest 2 | . 2 2 Hottest 120 | . 40 120 Shots Fired 186 | . 92 94 Gun 186 | . 92 94 Cannon . | . . . Launcher . | . . . Special . | . . . Kinetic 119 | . 92 27 Thermal 48 | . . 48 Explosive . | . . . Electromagnetic 19 | . . 19 Robot Hit Streak 25 | . 13 25 Robot Miss Streak 4 | . 4 2 Penetration Max . | . . . Secondary Targets 2 | . 2 . Max Gunslinging Chain 1 | . 1 . Shots Hit Robots 113 | . 60 53 Core Hits 34 | . 20 14 Critical Kills . | . . . Critical Parts Destroyed . | . . . Critical Strikes . | . . . Melee Attacks . | . . . Impact . | . . . Slashing . | . . . Piercing . | . . . Sneak Attacks . | . . . Combat Hostiles . | . . . Follow-up Attacks . | . . . Damage Inflicted 1469 | . 645 824 Guns 1469 | . 645 824 Cannons . | . . . Explosions . | . . . Melee . | . . . Ramming . | . . . Kinetic 839 | . 645 194 Thermal 349 | . . 349 Explosive . | . . . Electromagnetic 281 | . . 281 Impact . | . . . Slashing . | . . . Piercing . | . . . Highest Corruption . | . . . Average Corruption . | . . . Corruption Purged . | . . . Corruption Blocked . | . . . Overload Shots . | . . . Overflow Damage . | . . . Projectiles . | . . . Explosions . | . . . Melee . | . . . Knockbacks . | . . . Impact . | . . . Kinetic . | . . . Secondary . | . . . Self-Inflicted Damage . | . . . Shots . | . . . Rammed . | . . . Targets Rammed . | . . . Kicked . | . . . Crushed . | . . . Highest Temperature 12 | . 12 2 Average Temperature 6 | . 7 2 Received Heat Transfer 252 | . 156 96 Siege Activations . | . . . Martial Activations . | . . . Shielding Activations . | . . . Robots Disrupted . | . . . Combat Hostiles . | . . . Robots Corrupted 1 | . . 1 Combat Hostiles 1 | . . 1 Parts Fried 1 | . . 1 Impact Corruptions . | . . . Robots Melted . | . . . Combat Hostiles . | . . . Parts Melted . | . . . Heat Transferred 425 | . . 425 Parts Sabotaged . | . . . Parts Stolen . | . . . Parts Stripped . | . . . Power Chain Reactions . | . . . Alert | -11 -10 -10 ------- Run | Yrd Mat Sub Maximum Alert Level . | . . . Low Security (%) 100 | 100 100 . Level 1 . | . . . Level 2 . | . . . Level 3 . | . . . Level 4 . | . . . Level 5 . | . . . High Security . | . . . Max Security . | . . . Peak Influence 110 | . 110 . Initial . | . . . Average 38 | . 44 . Influence Increases 227 | . 207 20 Destroy 0b10 Robot/C 180 | . 160 20 Destroy 0b10 Robot/NC 15 | . 15 . Destroy Leader 32 | . 32 . Influence Decreases 227 | . 172 55 Entered New Map 18 | . . 18 Time Decay 202 | . 172 30 Lost Part 7 | . . 7 Squads Dispatched 1 | . 1 . Investigation . | . . . Extermination . | . . . Reinforcement 1 | . 1 . Assault . | . . . Garrison . | . . . Intercept . | . . . Searches Triggered . | . . . Construction Impeded . | . . . Haulers Reinforced . | . . . Active Scanning Responses . | . . . Cargo Convoy Interrupts . | . . . Stealth | -11 -10 -10 --------- Run | Yrd Mat Sub Distress Signals 2 | . 2 . Communications Jammed . | . . . Distress Signals . | . . . Times Spotted 21 | . 13 8 Peak Tracking Total 4 | . 4 2 Tactical Retreats . | . . . Traps | -11 -10 -10 ------- Run | Yrd Mat Sub Traps Triggered . | . . . Indirectly . | . . . Trap Hack Attempts . | . . . Triggered . | . . . Disarmed . | . . . Reprogrammed . | . . . Reused . | . . . Traps Extracted . | . . . Installed . | . . . Triggered . | . . . Machines | -11 -10 -10 ---------- Run | Yrd Mat Sub Machines Disabled . | . . . Max in Single Turn . | . . . Machines Repaired . | . . . Machines Dismantled . | . . . Machines Sabotaged . | . . . Overloaded Fab Kills . | . . . Hacking | -11 -10 -10 --------- Run | Yrd Mat Sub Machines Accessed 1 | . . 1 Terminals . | . . . Fabricators . | . . . Repair Stations . | . . . Recycling Units . | . . . Scanalyzers . | . . . Garrison Access . | . . . Total Hacks 5 | . . 5 Successful 5 | . . 5 Failed . | . . . Catastrophic . | . . . Database Lockouts . | . . . Manual . | . . . Terminals . | . . . Fabricators . | . . . Repair Stations . | . . . Recycling Units . | . . . Scanalyzers . | . . . Garrison Access . | . . . Terminal Hacks 5 | . . 5 Record 5 | . . 5 Fabricator Hacks . | . . . Repair Station Hacks . | . . . Recycling Unit Hacks . | . . . Scanalyzer . | . . . Garrison Access Hacks . | . . . Unauthorized Hacks . | . . . Terminals . | . . . Fabricators . | . . . Repair Stations . | . . . Recycling Units . | . . . Scanalyzers . | . . . Garrison Access . | . . . Data Cores Recovered . | . . . Used . | . . . Hacking Detections . | . . . Full Trace Events . | . . . Feedback Events . | . . . Feedback Blocked . | . . . Robot Schematics Acquired . | . . . Robots Built . | . . . Authchips . | . . . Time . | . . . Total Robot Build Rating . | . . . Part Schematics Acquired . | . . . Parts Built . | . . . Authchips . | . . . Time . | . . . Total Part Build Rating . | . . . Part Studies Acquired . | . . . Parts Repaired . | . . . Time . | . . . Parts Recycled . | . . . Recycled Matter . | . . . Retrieved Matter . | . . . Retrieved Components . | . . . Parts Scanalyzed . | . . . Part Schematics Acquired . | . . . Parts Damaged . | . . . Bothacking | -11 -10 -10 ------------ Run | Yrd Mat Sub Used RIF Installer . | . . . Robots Hacked . | . . . Non-combat . | . . . Combat . | . . . Robot Hacks Applied . | . . . Relay Couplers Released . | . . . Fabnet Peak Effective % . | . . . Robots Rewired . | . . . Allies Hacked . | . . . Hacks Repelled . | . . . Allies | -11 -10 -10 -------- Run | Yrd Mat Sub Total Allies . | . . . Largest Group . | . . . Highest-Rated Group . | . . . Highest-Rated Ally . | . . . Total Orders . | . . . Ally Attacks . | . . . Total Damage . | . . . Kills . | . . . Allies Corrupted . | . . . Allies Melted . | . . . Intel | -11 -10 -10 ------- Run | Yrd Mat Sub Active Infowar (turns) . | . . . Robot Analysis Total . | . . . Derelict Logs Recovered . | . . . Drone Launches . | . . . Drone Recoveries . | . . . Exploration | -11 -10 -10 ------------- Run | Yrd Mat Sub Turns Passed 2005 | 78 460 1467 Spaces Moved 1164 | 55 160 949 Core 24 | 24 . . Treads 206 | 31 160 15 Legs . | . . . Wheels 934 | . . 934 Hover . | . . . Flight . | . . . Fastest Speed 50 | 50 160 130 Average Speed 139 | 114 183 133 Slowest Speed 320 | 160 320 320 Overloaded Moves . | . . . Propulsion Burnouts . | . . . Robots Hopped . | . . . Potential Cave-ins . | . . . Cave-ins Triggered . | . . . Exploration Rate (%) 23 | 3 34 33 Regions Visited 2 Branch Regions 1 Pre-discovered Areas 1 | . . 1 Known Exits Taken . | . . . Unknown Exits Taken 2 | 1 1 . Scrap Searched 1 | . . 1 Spaces Dug . | . . . Terrain Destroyed . | . . . Melee . | . . . Projectile . | . . . AOE . | . . . Terrain Rammed . | . . . Walls Destroyed . | . . . Machines Disabled . | . . . Actions | -11 -10 -10 --------- Run | Yrd Mat Sub Total 1380 | 70 246 1064 Wait 57 | . 35 22 Move 1162 | 54 159 949 Hop . | . . . Pick Up 32 | 10 4 18 Fast Attach 1 | . . 1 Attach 13 | 6 . 7 Detach . | . . . Swap 3 | . 1 2 Drop 2 | . 1 1 Fire 110 | . 46 64 Melee . | . . . Ram . | . . . Kick . | . . . Crush . | . . . Escape Stasis . | . . . Rewire . | . . . Trap . | . . . Miscellaneous . | . . . Route ------- -11/Scrapyard -10/Materials (discovered 2 exits: [*Mat] / *Sub) -10/Subcaves (discovered 1 exit: [*Mat]) History --------- Turn | Location | Event 4 | -11/Scrapyard | Discovered new exit (range 15) 79 | -11/Scrapyard | Entered Materials 308 | -10/Materials | Build established: Mutant 355 | -10/Materials | Discovered new exit (range 16) 520 | -10/Materials | Discovered new exit (range 8) 539 | -10/Materials | Entered Subcaves 540 | -10/Subcaves | Approached by a straggling Scientist 646 | -10/Subcaves | Lost 4 parts (1p2n1w) 730 | -10/Subcaves | Disturbed a concealed Subdweller 881 | -10/Subcaves | Core integrity fell below 50% 1187 | -10/Subcaves | Visited Clippyterm 1191 | -10/Subcaves | Learned location of Deep Caves (-7) 1191 | -10/Subcaves | Learned Factory trap positions 1676 | -10/Subcaves | Discovered new exit (range 10) 1689 | -10/Subcaves | Shifting Twisted Machinery released Sub. Beam Cannon 1694 | -10/Subcaves | Shifting Twisted Machinery released Sub. Beam Cannon 1983 | -10/Subcaves | Core integrity fell below 20% 2006 | -10/Subcaves | Destroyed by 6C-9F2(R) with Subdweller Laser Last Messages --------------- B8-0SG(c): "I think it's somewhere west of here" 01562_ N9-HW1(u) tweaks Twisted Machinery. 01676_ EXIT=FOUND Sub. Beam Cannon falls loose from the Twisted Machinery. 01703_ Acquired Sub. Beam Cannon. 01960_ 4A-ELL(R) emerges from the Twisted Machinery. 01983_ Com. Wheel destroyed. 01984_ 4A-ELL(R) system terminally corrupted. 01984_ Sub. Optics fried. 01986_ Acquired 5 matter. 01991_ 6C-9F2(R) affixes Scrap Shield Fragment to Scrap Shield. 01992_ Subatomizers dissect the Corrupted Sub. Monowheel. 01994_ 6C-9F2(R) misfires. 01998_ Riot Gun destroyed. 02003_ Acquired 10 matter. 02004_ 6C-9F2(R) misfires. Map ----- +----------------------------------------------------+ | ?????????????????????????????????????????????????? | | ?????????????????????????????????????????????????? | | ?????????????????????????????????????????????????? | | ?????????????????????????????????????????????????? | | ?????????????????????????????????????????????????? | | ?????????????????????????????????????????????????? | | ?????????????????????????????????????????????????? | | ?????????????????????????????????????????????????? | | ?????????????????????????????????????????????????? | | ?????????????????????????????????????????????????? | | ?????????????????????????????????????????????????? | | ?????????????????????????????????????????????????? | | ?????????????????????????????????????????????????? | | ????????????????####?????????????????????????????? | | ????????????????? ????????????????????????????? | | ?????????????????? ???????????????????????????? | | ??????????????????# ?????????? ??????????????? | | ?????????????????## ????????? ???????????????? | | ???????????????# # ##??????? ???????????????? | | ??????????????## # ##????? #???????????????? | | ??????????????#! ##???? ###### ????????? | | ??????????????? #???? # ?????????? | | ??????????????????? " #???# ??????????? | | ??????????????????????# #???? ???????????? | | ??????????????????????# ##### #?????????????? | | ??????????????????????# &@R## ##????????????? | | ???????????????????#### [!= #????????????? | | ?????????????????#"#"" ##???????????? | | ???????????????? "" "" ##??????????? | | ???????????????? """" % ##?????????? | | ????????????????? #"# ##????????? | | ??????????????????## ##???????? | | ???????????????????# #?? #??? | | ???????????????????# #### #?? ??? | | ???????????????????# #???# ###?? #??? | | ??????????????????# ???## ## #???? #??? | | ?????????????????# ??## ##?# #??? #??? | | ?????????????????# ## ??# ##???? #??? #??? | | ?????????????????##?# ??## ##########??? ##?? | | ??????????????#####?## ???## # # ####?## #?? | | ??????????????# ####????## ### #??? | | ??????????????# ##???# ## #??? | | ??????????????## ##### # # # # #??? | | ???????????????## ## ######### #??? | | ????????????????# ## #???????## #??? | | ???????????????# ###????????# ##??? | | ???????????????# ##??????????# ##???? | | ???????????????############???????????## ##???? | | ???????????????????????????????????????## "" ##??? | | ?????????????????????????????????????#### " #??? | +----------------------------------------------------+ Best States ------------- Heat Dissipation 25 Energy Generation 15 Energy Capacity 200 Matter Stores 300 Matter Capacity 300 Sight Range 16 Terrain Scan Density 10 Evasion (%) 50 Recoil Reduction 2 Item Schematics ----------------- None Robot Schematics ------------------ None Fabricated ------------ Nothing Repaired ---------- Nothing Studied --------- None Alien Tech Used ----------------- None Achievements -------------- None Challenges ------------ None Game ------ Seed BlastGodAmplifier Manual? 0 Play Time 00:13:21 Cumulative 321.4 hours Start 2026.09.22 @ 18:41:52 End 2026.09.22 @ 18:51:30 Sessions 1 Manual Loads 0 Difficulty Rogue Special Mode None Game No. 362 Rogue 362 Adventurer 0 Explorer 0 Win Type - Total 3 Types 3/0/0/0/0/0/0/0/0/0 Lore% 55 Gallery% 60 Achievement% 47 Wizard Run 0 Options --------- Layout 1 ASCII 0 Keyboard 0 Movement Numpad Keybinds 0 Fullscreen 2 Font 24/Smallcaps Map View 50x35 Zoom Use 0% Tactical HUD 1 Map Filters NONE Filters NONE Steam 1 RUN: 4d301c85-b064-4dbf-91bc-7e458d5c1ffe